Cogmind - Beta 17 @@@ ROGUE MODE // 2026.06.23 @ 23:06:41 Player: D4-RLM Result: Destroyed by S-27 Virus with Autogun Performance ------------- Evolutions (3) 1500 Regions Visited (6) 1200 Robots Destroyed (79) 395 Value Destroyed (2401) 2401 Prototype IDs (5) 100 Alien Tech Used (0) 0 Bonus (200) 200 TOTAL SCORE: 5796 Bonus ------- Entered Garrisons 200 Cogmind --------- Core Integrity 0/700 Matter 112/300 Energy 100/100 System Corruption 8% Temperature Cool (0) Movement Core (50) Location -7/Garrison Parts ------- > --- POWER (1) -------- (None) > --- PROPULSION (5) --- (None) > --- UTILITY (5) ------ (None) > --- WEAPON (2) ------- (None) > --- INVENTORY (5) ---- Light Nuclear Core Faulty Improved EM Shotgun Subdweller Machine Gun High-powered Shotgun Katana Peak State ------------ > --- POWER ------------ Light Nuclear Core > --- PROPULSION ------- Light Treads Spiked Treads Armored Wheel Armored Wheel Armored Wheel > --- UTILITY ---------- High-capacity Storage Unit Advanced Targeting Computer Target Analyzer Recoil Stabilizer Hardened Medium Armor Plating > --- WEAPON ----------- Minigun Barrage Gun > --- INVENTORY -------- Light Nuclear Core Light Treads Armored Wheel Cooled VTOL Module Medium Matter Pod Seismic Detector Improved EM Shotgun Improved EM Shotgun Heavy Assault Rifle Autogun Subdweller Machine Gun High-powered Shotgun High-powered Shotgun Proton Missile Launcher Rocket Launcher Improved Datajack Flail [Rating: 35] Favorites ----------- Power Light Ion Engine Engine Light Ion Engine Power Core Light Nuclear Core Propulsion Light Treads Treads Light Treads Wheel Armored Wheel Utility High-capacity Storage Unit Device Seismic Detector Storage High-capacity Storage Unit Processor Target Analyzer Protection Hardened Medium Armor Plating Weapon Medium Laser Energy Gun Medium Laser Ballistic Gun Minigun Launcher Rocket Launcher Impact Weapon Flail Build | -11 -10 -10 -10 -8 -7 -7 ------- Run | Yrd Mat Min Sub Mat Fac Gar Slots Evolved 6 | . . . . 4 2 . Power . | . . . . . . . Propulsion 3 | . . . . 2 1 . Utility 3 | . . . . 2 1 . Weapon . | . . . . . . . Parts Attached 57 | 7 4 2 8 23 12 1 Power 6 | 1 . . 2 2 1 . Engine 4 | 1 . . 2 1 . . Core 2 | . . . . 1 1 . Reactor . | . . . . . . . Propulsion 18 | 2 . . 3 10 3 . Treads 7 | 2 . . . 4 1 . Leg . | . . . . . . . Wheel 11 | . . . 3 6 2 . Hover . | . . . . . . . Flight . | . . . . . . . Utility 16 | 2 1 . 2 7 4 . Device 7 | 1 . . . 3 3 . Storage 3 | 1 1 . 1 . . . Processor 2 | . . . . 2 . . Hackware . | . . . . . . . Protection 4 | . . . 1 2 1 . Artifact . | . . . . . . . Weapon 17 | 2 3 2 1 4 4 1 Energy Gun 5 | 1 . . 1 2 . 1 Energy Cannon . | . . . . . . . Ballistic Gun 10 | 1 2 2 . 2 3 . Ballistic Cannon . | . . . . . . . Launcher 1 | . 1 . . . . . Special Weapon . | . . . . . . . Impact Weapon 1 | . . . . . 1 . Slashing Weapon . | . . . . . . . Piercing Weapon . | . . . . . . . Special Melee Weapon . | . . . . . . . Unidentified Prototypes 1 | . . . . . . 1 Parts Lost 36 | . . . 8 11 8 9 Power 5 | . . . 3 . 1 1 Propulsion 13 | . . . 2 5 2 4 Utility 12 | . . . 1 5 3 3 Weapon 6 | . . . 2 1 2 1 Highest Loss Streak 9 | . . . 2 4 3 9 To Critical Strikes . | . . . . . . . Average Backups 15 | 3 10 15 16 18 17 13 Power . | . 1 1 . . 1 1 Propulsion 2 | 1 2 2 3 3 2 1 Utility 3 | . 1 4 4 4 3 . Weapon 7 | . 5 7 6 9 10 8 Tool/Special . | . . . . . . . Unused Backups 16 | . 1 1 . 5 . 9 Power 2 | . . . . . . 2 Propulsion 3 | . . . . 2 . 1 Utility 4 | . 1 . . 2 . 1 Weapon 5 | . . 1 . . . 4 Tool/Special 2 | . . . . 1 . 1 Average Slot Usage (%) 97 | . 100 100 96 97 95 78 Engine 9 | . 14 14 13 7 . . Core 1 | . . . . 1 6 3 Treads 18 | . 28 28 6 18 13 12 Wheel 12 | . . . 19 17 22 17 Device 11 | . 14 14 12 10 6 11 Storage 11 | . 14 14 14 9 7 6 Processor 4 | . . . . 7 14 6 Protection 3 | . . . 1 7 6 5 Energy Gun 7 | . 14 14 11 2 . 1 Ballistic Gun 14 | . 13 13 14 14 13 10 Peak Build Rating 35 | 7 10 10 14 32 35 34 Average Rating 18 | 5 9 10 11 27 33 25 On Entrance 14 | . 7 10 10 13 30 34 Avg Prop Armor Cover (%) 13 | . . . . 13 11 11 Naked Turns 28 | . . . . . . 28 Heaviest Build 65 | 13 30 30 58 64 65 65 Greatest Support 80 | 40 40 40 40 80 48 36 Greatest Overweight (x) 4 | . . . 3 3 2 4 Average Overweight (x) . | . . . 1 1 1 . Largest Inventory Capacity 20 | 8 15 15 20 20 20 20 Average Capacity 17 | 7 14 15 18 20 20 17 Most Carried 20 | 4 15 15 19 20 20 16 Average Carried 15 | 3 10 15 16 19 17 13 Final Capacity 20 | 8 15 15 20 20 20 5 Final Carried 19 | 4 15 15 19 18 16 5 Class Distribution -------------------- 92% | Mutant 7% | Scavenger-Mutant Dominant Class ---------------- Mutant | -10/Materials Mutant | -10/Mines Mutant | -10/Subcaves Mutant | -8/Materials Mutant | -7/Factory Mutant | -7/Garrison Resources | -11 -10 -10 -10 -8 -7 -7 ----------- Run | Yrd Mat Min Sub Mat Fac Gar Matter Collected 1910 | 300 73 207 304 647 370 9 Remotely . | . . . . . . . Salvage Created 2786 | 222 137 191 260 1327 599 50 Parts 168 | 18 9 9 22 78 28 4 Haulers Intercepted 2 | . . . . 2 . . Recyclers Shooed . | . . . . . . . Parts Field Recycled . | . . . . . . . Retrieved Matter . | . . . . . . . Parts Self-Destructed 9 | . . . 9 . . . Prevented . | . . . . . . . Parts Restored . | . . . . . . . Kills | -11 -10 -10 -10 -8 -7 -7 ------- Run | Yrd Mat Min Sub Mat Fac Gar Combat Hostiles Destroyed 58 | . 2 7 9 21 15 4 Guns 39 | . 2 4 6 16 11 . AOE 18 | . . 3 3 4 4 4 Classes Destroyed 14 | 2 3 1 2 3 3 . Worker 2 | . . . . 2 . . Builder 2 | . 1 . . 1 . . Tunneler 6 | 6 . . . . . . Hauler 2 | . . . . 2 . . Recycler 2 | 1 . . . 1 . . Watcher 7 | . 2 . . 5 . . Swarmer 18 | . . 3 3 4 4 4 Grunt 23 | . 2 4 . 10 7 . Brawler 1 | . . . . . 1 . Duelist 1 | . . . . . 1 . Sentry 7 | . . . 1 6 . . Hunter 2 | . . . . 1 1 . Programmer 1 | . . . . . 1 . Subdweller 5 | . . . 5 . . . Best Kill Streak 4 | 2 2 3 3 4 4 4 Combat Bots Only 4 | . 2 3 3 4 4 4 Max Kills in Single Turn 3 | 1 1 3 2 3 2 3 Gunslinging . | . . . . . . . Exploded 3 | . . 3 2 3 2 3 Melee . | . . . . . . . Uniques/NPCs Destroyed . | . . . . . . . Combat | -11 -10 -10 -10 -8 -7 -7 -------- Run | Yrd Mat Min Sub Mat Fac Gar Hostile Shots Fired 412 | . 5 35 40 103 115 114 Missed 112 | . . 14 10 18 38 32 Hits 300 | . 5 21 30 85 77 82 Melee 6 | . . . . . 6 . Projectile 294 | . 5 21 30 85 71 82 Critical Strikes 10 | . . 3 . 3 4 . Damage Taken 4915 | . 64 323 666 1410 1285 1167 Core 962 | . 12 39 94 110 249 458 Absorbed by Shields 120 | . . . . . . 120 Core Remaining (%) 74 | 100 . . 42 80 . . Volleys Fired 225 | 10 10 16 47 84 53 5 Largest 2 | 2 2 2 2 2 2 2 Hottest 90 | 70 73 73 80 90 58 58 Shots Fired 404 | 20 18 31 74 158 96 7 Gun 376 | 20 17 30 61 152 92 4 Cannon . | . . . . . . . Launcher 28 | . 1 1 13 6 4 3 Special . | . . . . . . . Kinetic 287 | 10 9 15 37 120 92 4 Thermal 57 | 10 8 15 24 . . . Explosive 28 | . 1 1 13 6 4 3 Electromagnetic 32 | . . . . 32 . . Robot Hit Streak 30 | 5 5 8 30 21 10 . Robot Miss Streak 17 | 3 2 2 3 3 5 17 Penetration Max . | . . . . . . . Secondary Targets 2 | . . . . . 2 . Max Gunslinging Chain 1 | . . . . . 1 . Shots Hit Robots 282 | 11 10 22 56 107 76 . Core Hits 147 | 7 7 12 16 61 40 4 Critical Kills 3 | . . . . 2 1 . Critical Parts Destroyed 7 | . . . . 4 3 . Critical Strikes 15 | 1 1 1 2 6 4 . Burn 5 | 1 1 1 2 . . . Destroy 10 | . . . . 6 4 . Melee Attacks 3 | . . . . . 3 . Impact 3 | . . . . . 3 . Slashing . | . . . . . . . Piercing . | . . . . . . . Sneak Attacks . | . . . . . . . Combat Hostiles . | . . . . . . . Follow-up Attacks . | . . . . . . . Damage Inflicted 5658 | 156 133 416 994 2190 1495 274 Guns 4376 | 156 129 298 755 1772 1260 6 Cannons . | . . . . . . . Explosions 1278 | . . 118 239 418 235 268 Melee . | . . . . . . . Ramming 4 | . 4 . . . . . Kinetic 3351 | 93 56 163 476 1297 1260 6 Thermal 613 | 63 73 135 279 63 . . Explosive 1215 | . . 118 239 355 235 268 Electromagnetic 475 | . . . . 475 . . Impact . | . . . . . . . Slashing . | . . . . . . . Piercing . | . . . . . . . Highest Corruption 8 | . . . . . 7 8 Average Corruption 6 | . . . . . 3 7 Corruption Purged . | . . . . . . . Corruption Blocked . | . . . . . . . Effects 8 | . . . . . 3 5 Message Errors 2 | . . . . . 1 1 Matter Fused 4 | . . . . . 1 3 Heat Flow Errors 1 | . . . . . . 1 Parts Fused 1 | . . . . . 1 . Overload Shots . | . . . . . . . Overflow Damage 167 | . . 25 39 77 3 23 Projectiles . | . . . . . . . Explosions 167 | . . 25 39 77 3 23 Melee . | . . . . . . . Knockbacks . | . . . . . . . Impact . | . . . . . . . Kinetic . | . . . . . . . Secondary . | . . . . . . . Self-Inflicted Damage 288 | . . 40 89 94 . 65 Shots 8 | . . 1 3 2 . 2 Rammed . | . . . . . . . Targets Rammed 1 | . 1 . . . . . Kicked . | . . . . . . . Crushed 1 | . 1 . . . . . Highest Temperature 212 | 27 80 201 . 162 37 212 Average Temperature 45 | 11 29 95 . 39 10 112 Received Heat Transfer 1113 | . 36 189 60 486 315 27 Siege Activations . | . . . . . . . Martial Activations . | . . . . . . . Shielding Activations . | . . . . . . . Robots Disrupted . | . . . . . . . Combat Hostiles . | . . . . . . . Robots Corrupted 1 | . . . . 1 . . Combat Hostiles 1 | . . . . 1 . . Parts Fried 2 | . . . . 2 . . Impact Corruptions . | . . . . . . . Robots Melted . | . . . . . . . Combat Hostiles . | . . . . . . . Parts Melted 4 | 1 . 3 . . . . Heat Transferred 1938 | 259 296 481 852 50 . . Parts Sabotaged . | . . . . . . . Parts Stolen . | . . . . . . . Parts Stripped . | . . . . . . . Power Chain Reactions 1 | . . . . 1 . . Alert | -11 -10 -10 -10 -8 -7 -7 ------- Run | Yrd Mat Min Sub Mat Fac Gar Maximum Alert Level 1 | . . . . . . 1 Low Security (%) 99 | 100 100 100 . 100 100 99 Level 1 . | . . . . . . . Level 2 . | . . . . . . . Level 3 . | . . . . . . . Level 4 . | . . . . . . . Level 5 . | . . . . . . . High Security . | . . . . . . . Max Security . | . . . . . . . Peak Influence 204 | 10 50 81 . 155 156 204 Initial 106 | . . . . . 35 106 Average 34 | 1 4 14 . 46 52 137 Influence Increases 1650 | 35 76 181 90 736 394 138 Destroy 0b10 Robot/C 1060 | . 40 140 80 420 300 80 Destroy 0b10 Robot/NC 105 | 35 15 . . 55 . . Destroy Leader 228 | . 14 30 10 114 60 . Successful Hack 24 | . . . . 20 4 . Disable Machine 45 | . . . . 45 . . Destroy Structure 98 | . 7 11 . 52 15 13 Lose Combat Pursuer 90 | . . . . 30 15 45 Influence Decreases 1496 | 35 76 181 90 659 319 136 Entered New Map 88 | . . . . . 42 46 Time Decay 1053 | 35 76 181 70 484 207 . Lost Part 280 | . . . 20 100 70 90 Purge Threat 75 | . . . . 75 . . Squads Dispatched 7 | . . . . 2 5 . Investigation 2 | . . . . 1 1 . Extermination 1 | . . . . . 1 . Reinforcement 2 | . . . . 1 1 . Assault . | . . . . . . . Garrison 2 | . . . . . 2 . Intercept . | . . . . . . . Searches Triggered . | . . . . . . . Construction Impeded . | . . . . . . . Haulers Reinforced . | . . . . . . . Active Scanning Responses . | . . . . . . . Cargo Convoy Interrupts . | . . . . . . . Stealth | -11 -10 -10 -10 -8 -7 -7 --------- Run | Yrd Mat Min Sub Mat Fac Gar Distress Signals 5 | . 1 . . 4 . . Communications Jammed . | . . . . . . . Distress Signals . | . . . . . . . Times Spotted 85 | . 8 8 9 30 16 14 Peak Tracking Total 7 | . 3 3 3 4 4 7 Tactical Retreats 5 | . . . . 2 1 2 Traps | -11 -10 -10 -10 -8 -7 -7 ------- Run | Yrd Mat Min Sub Mat Fac Gar Traps Triggered 4 | . . . 1 . . 3 Indirectly . | . . . . . . . Trap Hack Attempts . | . . . . . . . Triggered . | . . . . . . . Disarmed . | . . . . . . . Reprogrammed . | . . . . . . . Reused . | . . . . . . . Traps Extracted . | . . . . . . . Installed . | . . . . . . . Triggered . | . . . . . . . Machines | -11 -10 -10 -10 -8 -7 -7 ---------- Run | Yrd Mat Min Sub Mat Fac Gar Machines Disabled 3 | . . . . 3 . . Max in Single Turn 1 | . . . . 1 . . Machines Repaired . | . . . . . . . Machines Dismantled . | . . . . . . . Machines Sabotaged . | . . . . . . . Overloaded Fab Kills . | . . . . . . . Hacking | -11 -10 -10 -10 -8 -7 -7 --------- Run | Yrd Mat Min Sub Mat Fac Gar Machines Accessed 11 | . . . . 9 2 . Terminals 7 | . . . . 6 1 . Fabricators . | . . . . . . . Repair Stations . | . . . . . . . Recycling Units 1 | . . . . 1 . . Scanalyzers 2 | . . . . 2 . . Garrison Access 1 | . . . . . 1 . Total Hacks 24 | . . . . 20 4 . Successful 10 | . . . . 7 3 . Failed 13 | . . . . 12 1 . Catastrophic 3 | . . . . 3 . . Database Lockouts 1 | . . . . 1 . . Manual 4 | . . . . 3 1 . Terminals 18 | . . . . 15 3 . Fabricators . | . . . . . . . Repair Stations . | . . . . . . . Recycling Units 1 | . . . . 1 . . Scanalyzers 4 | . . . . 4 . . Garrison Access 1 | . . . . . 1 . Terminal Hacks 7 | . . . . 5 2 . Record 2 | . . . . . 2 . Prototype ID Bank 2 | . . . . 2 . . Branch Access Points 1 | . . . . 1 . . Unreport Threat 1 | . . . . 1 . . Registered Components 1 | . . . . 1 . . Fabricator Hacks . | . . . . . . . Repair Station Hacks . | . . . . . . . Recycling Unit Hacks 1 | . . . . 1 . . Report Inventory 1 | . . . . 1 . . Scanalyzer 1 | . . . . 1 . . Retrieve Study 1 | . . . . 1 . . Garrison Access Hacks 1 | . . . . . 1 . Unlock Access 1 | . . . . . 1 . Unauthorized Hacks . | . . . . . . . Terminals . | . . . . . . . Fabricators . | . . . . . . . Repair Stations . | . . . . . . . Recycling Units . | . . . . . . . Scanalyzers . | . . . . . . . Garrison Access . | . . . . . . . Data Cores Recovered . | . . . . . . . Used . | . . . . . . . Hacking Detections 9 | . . . . 7 2 . Full Trace Events 2 | . . . . 1 1 . Feedback Events . | . . . . . . . Feedback Blocked . | . . . . . . . Robot Schematics Acquired . | . . . . . . . Robots Built . | . . . . . . . Authchips . | . . . . . . . Time . | . . . . . . . Total Robot Build Rating . | . . . . . . . Part Schematics Acquired . | . . . . . . . Parts Built . | . . . . . . . Authchips . | . . . . . . . Time . | . . . . . . . Total Part Build Rating . | . . . . . . . Part Studies Acquired 1 | . . . . 1 . . Parts Repaired . | . . . . . . . Time . | . . . . . . . Parts Recycled . | . . . . . . . Recycled Matter . | . . . . . . . Retrieved Matter . | . . . . . . . Retrieved Components . | . . . . . . . Parts Scanalyzed . | . . . . . . . Part Schematics Acquired . | . . . . . . . Parts Damaged . | . . . . . . . Bothacking | -11 -10 -10 -10 -8 -7 -7 ------------ Run | Yrd Mat Min Sub Mat Fac Gar Used RIF Installer . | . . . . . . . Robots Hacked . | . . . . . . . Non-combat . | . . . . . . . Combat . | . . . . . . . Robot Hacks Applied . | . . . . . . . Relay Couplers Released . | . . . . . . . Fabnet Peak Effective % . | . . . . . . . Robots Rewired . | . . . . . . . Allies Hacked . | . . . . . . . Hacks Repelled . | . . . . . . . Allies | -11 -10 -10 -10 -8 -7 -7 -------- Run | Yrd Mat Min Sub Mat Fac Gar Total Allies . | . . . . . . . Largest Group . | . . . . . . . Highest-Rated Group . | . . . . . . . Highest-Rated Ally . | . . . . . . . Total Orders . | . . . . . . . Ally Attacks . | . . . . . . . Total Damage . | . . . . . . . Kills . | . . . . . . . Allies Corrupted . | . . . . . . . Allies Melted . | . . . . . . . Intel | -11 -10 -10 -10 -8 -7 -7 ------- Run | Yrd Mat Min Sub Mat Fac Gar Active Infowar (turns) 2924 | 23 740 863 852 243 99 104 Optics 243 | . . . . 243 . . Seismic 2681 | 23 740 863 852 . 99 104 Robot Analysis Total . | . . . . . . . Derelict Logs Recovered 2 | . . 1 1 . . . Drone Launches . | . . . . . . . Drone Recoveries . | . . . . . . . Exploration | -11 -10 -10 -10 -8 -7 -7 ------------- Run | Yrd Mat Min Sub Mat Fac Gar Turns Passed 5368 | 266 740 863 994 1771 582 152 Spaces Moved 3193 | 141 424 496 627 1086 300 119 Core 56 | 5 . . . . . 51 Treads 1262 | 136 424 496 119 60 27 . Legs . | . . . . . . . Wheels 1875 | . . . 508 1026 273 68 Hover . | . . . . . . . Flight . | . . . . . . . Fastest Speed 50 | 50 160 160 100 100 105 50 Average Speed 135 | 156 160 160 129 123 124 84 Slowest Speed 320 | 160 160 160 240 260 320 150 Overloaded Moves . | . . . . . . . Propulsion Burnouts . | . . . . . . . Robots Hopped . | . . . . . . . Potential Cave-ins 2 | . . . 2 . . . Cave-ins Triggered . | . . . . . . . Exploration Rate (%) 42 | 5 45 92 46 73 7 29 Regions Visited 6 Branch Regions 2 Pre-discovered Areas 2 | . . 2 . . . . Known Exits Taken 1 | . . . . . 1 . Unknown Exits Taken 5 | 1 1 1 1 1 . . Scrap Searched 2 | . . . 2 . . . Spaces Dug 38 | . 7 . 28 . 3 . Terrain Destroyed 197 | . 7 13 110 44 15 8 Melee 3 | . . . . . 3 . Projectile . | . . . . . . . AOE 194 | . 7 13 110 44 12 8 Terrain Rammed . | . . . . . . . Walls Destroyed . | . . . . . . . Machines Disabled . | . . . . . . . Actions | -11 -10 -10 -10 -8 -7 -7 --------- Run | Yrd Mat Min Sub Mat Fac Gar Total 3852 | 164 468 536 732 1378 413 161 Wait 262 | 3 17 21 33 142 32 14 Move 3187 | 140 423 495 626 1085 299 119 Hop . | . . . . . . . Pick Up 57 | 4 11 . 10 24 8 . Fast Attach 9 | 7 . . . 2 . . Attach 32 | . . . 7 14 11 . Detach 1 | . . . . . 1 . Swap 37 | . 4 3 8 13 6 3 Drop 18 | . 2 1 1 14 . . Fire 225 | 10 10 16 47 84 53 5 Melee 3 | . . . . . 3 . Ram . | . . . . . . . Kick . | . . . . . . . Crush 1 | . 1 . . . . . Escape Stasis 20 | . . . . . . 20 Rewire . | . . . . . . . Trap . | . . . . . . . Miscellaneous . | . . . . . . . Route ------- -11/Scrapyard -10/Materials (discovered 2 exits: [*Mat] / [*Min]) -10/Mines (discovered 3 exits: [*Mat x2] / [*Sub]) -10/Subcaves -8/Materials (discovered 2 exits: *Fac x2) -7/Factory -7/Garrison History --------- Turn | Location | Event 18 | -11/Scrapyard | Discovered new exit (range 16) 267 | -11/Scrapyard | Entered Materials 308 | -10/Materials | Build established: Mutant 789 | -10/Materials | Discovered new exit (range 14) 923 | -10/Materials | Discovered new exit (range 8) 1007 | -10/Materials | Entered Mines 1075 | -10/Mines | Discovered new exit (range 12) 1222 | -10/Mines | Joined a pair of Derelicts in attacking an 0b10 outpost 1297 | -10/Mines | Learned location of Storage (-9) 1321 | -10/Mines | Discovered new exit (range 9) 1817 | -10/Mines | Discovered new exit (range 11) 1870 | -10/Mines | Entered Subcaves 2176 | -10/Subcaves | Learned Materials terminal intel 2615 | -10/Subcaves | Core integrity fell below 50% 2785 | -10/Subcaves | Discovered new exit (range 9) 2864 | -10/Subcaves | Entered Materials 2864 | -8/Materials | Evolved 4 slots: Propulsion x2, Utility x2 2865 | -8/Materials | Loaded intel: 12 terminal locations 2947 | -8/Materials | Lost 4 parts (1p2n1u) 3361 | -8/Materials | Build established: Scavenger-Mutant 3490 | -8/Materials | Discovered new exit (range 6) 3738 | -8/Materials | Build established: Mutant 3918 | -8/Materials | Discovered new exit (range 16) 4124 | -8/Materials | Central database locked down 4635 | -8/Materials | Entered Factory 4635 | -7/Factory | Evolved 2 slots: Propulsion x1, Utility x1 5082 | -7/Factory | Garrison activated, responded to threat 5125 | -7/Factory | Lost 3 parts (1n2u) 5216 | -7/Factory | Identified exit to Garrison 5217 | -7/Factory | Entered Garrison 5273 | -7/Garrison | Triggered checkpoint 5317 | -7/Garrison | Triggered checkpoint 5341 | -7/Garrison | Core integrity fell below 50% 5341 | -7/Garrison | Released all parts (4) 5361 | -7/Garrison | Triggered checkpoint 5364 | -7/Garrison | Core integrity fell below 20% 5369 | -7/Garrison | Destroyed by S-27 Virus with Autogun Last Messages --------------- 05336_ Lgt. Treads destroyed. 05337_ Triggered Stasis Trap. 05337_ A bubble of rippling energy engulfs the area. 05337_ Field strength at 90. 05338_ Rocket Launcher destroyed. 05339_ Field strength at 63. 05340_ Field strength at 37. 05341_ Arm. Wheel destroyed. 05341_ Released Lgt. Treads. 05341_ Released Flak Gun. 05341_ Released Hcp. Storage Unit. 05341_ Released Target Analyzer. 05341_ Field strength at 24. 05342_ Field strength at 13. 05343_ Stasis field depleted. 05346_ P-60 Hacker resets S-27 Virus, system corruption cleaned. 05361_ Beams of light sweep through the air. An alarm sounds. Map ----- +----------------------------------------------------+ | ############# #??????????????????????????????? | | #???????????#] #??????????????????????????????? | | ##???????????#!/ #??????????????????????????????? | | ?????????????#=[=#??????????????????????????????? | | ?????????????# !=#??????????????????????????????? | | ?????????????#[/[#??????????????????????????????? | | ?????????????#*[[#??????????????????????????????? | | ?????????????# #??????????????????????????????? | | ?????????????# #??????????????????????????????? | | ?????????????# #??????????????????????????????? | | ?????????????# #??????????????????????????????? | | ?????????????# #??????????????????????????????? | | ?????????????# #??????????????????????????????? | | ?????????????# #??????????????????????????????? | | ?????????????# #??????????????????????????????? | | ?????????????# #??????????????????????????????? | | ?????????????# #??????????????????????????????? | | ?????????????# #######################????????? | | ?????????????# #????????? | | ?????????????# #????????? | | ?????????????# #????????? | | ?????????????################# #### #????????? | | ????????????????????????? #??# #??????#????????? | | ?????????????############+#### #???????????????? | | ?????????????# ssps #???????????????? | | ?????????????# @ #???????????????? | | ?????????????### ##### ######???????????????? | | ??????????????#"""""#??# #????????????????????? | | ??????????????#######??#####????????????????????? | | ????????????????????????????????????????????????? | | ????????????????????????????????????????????????? | | ????????????????????????????????????????????????? | | ????????????????????????????????????????????????? | | ????????????????????????????????????????????????? | | ????????????????????????????????????????????????? | | ????????????????????????????????????????????????? | | ????????????????????????????????????????????????? | | ????????????????????????????????????????????????? | | ????????????????????????????????????????????????? | | ????????????????????????????????????????????????? | | ????????????????????????????????????????????????? | | ????????????????????????????????????????????????? | | ????????????????????????????????????????????????? | | | | | | | | | | | | | | | +----------------------------------------------------+ Best States ------------- Heat Dissipation 41 Energy Generation 15 Energy Capacity 265 Matter Stores 300 Matter Capacity 300 Sight Range 21 Terrain Scan Density 10 Armor Coverage 225 Evasion (%) 50 Targeting Accuracy 8 Target Analysis 5 Recoil Reduction 6 Matter Filtering 30 Item Schematics ----------------- None Robot Schematics ------------------ None Fabricated ------------ Nothing Repaired ---------- Nothing Studied --------- Minigun | -8/Materials | Hacked Alien Tech Used ----------------- None Achievements -------------- None Challenges ------------ None Game ------ Seed RelayMappingPendant Manual? 0 Play Time 01:12:15 Cumulative 27.9 hours Start 2026.06.23 @ 18:24:54 End 2026.06.23 @ 23:06:41 Sessions 5 Manual Loads 0 Difficulty Rogue Special Mode None Game No. 38 Rogue 34 Adventurer 4 Explorer 0 Win Type - Total 0 Types 0/0/0/0/0/0/0/0/0/0 Lore% 9 Gallery% 13 Achievement% 14 Wizard Run 0 Options --------- Layout 2 ASCII 0 Keyboard 1 Movement Arrows Keybinds 0 Fullscreen 1 Font 16/TamsynBold Map View 25x22 Zoom Use 71% Tactical HUD 1 Map Filters NONE Filters NONE Steam SD RUN: 4ef51e77-347c-4a7e-b5da-114869ab963c